Cogmind - Beta 16 @@@ ROGUE MODE // 2025.11.22 @ 14:28:46 Player: shapeshifter Result: Destroyed by S-27 Virus with Autogun Performance ------------- Evolutions (5) 2500 Regions Visited (11) 2200 Robots Destroyed (22) 110 Value Destroyed (720) 720 Prototype IDs (38) 760 Alien Tech Used (0) 0 Bonus (806) 806 TOTAL SCORE: 7096 Bonus ------- High Alert Combat Kills 6 Entered DSFs 500 Aligned with FarCom 300 Cogmind --------- Core Integrity 0/1000 Matter 226/300 Energy 44/100 System Corruption 0% Temperature Cool (0) Movement Core (50) Location -5/Upper Caves Parts ------- > --- POWER (2) -------- (None) > --- PROPULSION (7) --- (None) > --- UTILITY (5) ------ (None) > --- WEAPON (3) ------- Makeshift Hammer > --- INVENTORY (5) ---- Cooled Plasma Cannon Peak State ------------ > --- POWER ------------ Light Ion Engine > --- PROPULSION ------- Surge Thruster Surge Thruster Surge Thruster Surge Thruster Surge Thruster > --- UTILITY ---------- (None) > --- WEAPON ----------- AWS/Autocannon > --- INVENTORY -------- Surge Thruster Rocket Launcher [Rating: 46] Favorites ----------- Power Light Ion Engine Engine Light Ion Engine Propulsion Surge Thruster Leg Improved Aluminum Leg Wheel Armored Huge Wheel Flight Unit Surge Thruster Utility Seismic Detector Device Seismic Detector Processor Visual Processing Unit Protection Backup Plating I Weapon Backup Laser I Energy Gun Backup Laser I Energy Cannon Cooled Plasma Cannon Ballistic Cannon AWS/Autocannon Launcher Long-range Missile Launcher Impact Weapon Makeshift Hammer Slashing Weapon Axe Special Melee Weapon Datajack Build | -11 -10 -10 -10 -9 -8 -7 -7 -6 -5 -5 -5 ------- Run | Yrd Mat Min Exi Min Mat Fac DSF Fac Fac Upp Upp Slots Evolved 10 | . . . . . 4 2 . 2 2 . . Power 1 | . . . . . . . . 1 . . . Propulsion 5 | . . . . . 2 1 . 1 1 . . Utility 3 | . . . . . 1 1 . . 1 . . Weapon 1 | . . . . . 1 . . . . . . Parts Attached 26 | . 3 2 1 1 1 3 9 4 . 1 1 Power 1 | . . . . . . . 1 . . . . Engine 1 | . . . . . . . 1 . . . . Core . | . . . . . . . . . . . . Reactor . | . . . . . . . . . . . . Propulsion 14 | . 2 2 . . . 2 6 2 . . . Treads . | . . . . . . . . . . . . Leg 5 | . 2 2 . . . 1 . . . . . Wheel 1 | . . . . . . 1 . . . . . Hover . | . . . . . . . . . . . . Flight 8 | . . . . . . . 6 2 . . . Utility 4 | . 1 . . . . 1 . 1 . 1 . Device 2 | . 1 . . . . . . . . 1 . Storage . | . . . . . . . . . . . . Processor 2 | . . . . . . 1 . 1 . . . Hackware . | . . . . . . . . . . . . Protection . | . . . . . . . . . . . . Artifact . | . . . . . . . . . . . . Weapon 7 | . . . 1 1 1 . 2 1 . . 1 Energy Gun . | . . . . . . . . . . . . Energy Cannon 1 | . . . . . . . . 1 . . . Ballistic Gun . | . . . . . . . . . . . . Ballistic Cannon 1 | . . . . . . . 1 . . . . Launcher 2 | . . . . 1 . . 1 . . . . Special Weapon . | . . . . . . . . . . . . Impact Weapon 1 | . . . . . . . . . . . 1 Slashing Weapon 1 | . . . . . 1 . . . . . . Piercing Weapon . | . . . . . . . . . . . . Special Melee Weapon 1 | . . . 1 . . . . . . . . Unidentified Prototypes 1 | . . . . . . . . 1 . . . Parts Lost 5 | . . . . . . . . 3 . 1 1 Power 1 | . . . . . . . . 1 . . . Propulsion 2 | . . . . . . . . 2 . . . Utility 1 | . . . . . . . . . . 1 . Weapon 1 | . . . . . . . . . . . 1 Highest Loss Streak 3 | . . . . . . . . 3 . 1 1 To Critical Strikes . | . . . . . . . . . . . . Average Backups 2 | . 3 3 3 2 3 3 2 1 2 2 1 Power . | . . . . . 1 1 . . . . . Propulsion . | . 1 . 1 . . . 1 . . . . Utility . | . . . . . . . . . . . . Weapon 1 | . 2 2 2 1 2 2 1 1 2 2 1 Tool/Special . | . . . . . . . . . . . . Unused Backups 4 | . 1 1 1 . . . 1 . . . . Power . | . . . . . . . . . . . . Propulsion . | . . . . . . . . . . . . Utility 1 | . . . . . . . 1 . . . . Weapon 3 | . 1 1 1 . . . . . . . . Tool/Special . | . . . . . . . . . . . . Average Slot Usage (%) 16 | . 22 39 7 14 3 31 19 26 1 . 3 Engine 1 | . . . . . . 4 2 4 . . . Leg 5 | . 17 26 . 12 . 4 . . . . . Flight 3 | . . . . . . . 13 17 . . . Device 1 | . 5 13 . . . . . . . . . Processor 1 | . . . . . . 6 . 3 . . . Peak Build Rating 46 | . 6 5 3 7 6 20 46 19 6 6 10 Average Rating 6 | . 4 4 1 5 4 15 13 11 1 1 2 On Entrance 1 | . . . . 3 3 3 3 1 1 1 1 Avg Prop Armor Cover (%) 30 | . 36 35 . 30 . 25 . . . . . Naked Turns 487 | . 14 7 62 9 121 5 26 2 80 115 46 Heaviest Build 11 | . 1 1 1 4 3 3 8 11 8 2 8 Greatest Support 15 | 3 3 3 3 13 3 3 15 15 3 3 3 Greatest Overweight (x) 2 | . . . . . . . 2 1 2 . 2 Average Overweight (x) . | . . . . . . . . . . . . Largest Inventory Capacity 5 | 5 5 5 5 5 5 5 5 5 5 5 5 Average Capacity 5 | 5 5 5 5 5 5 5 5 5 5 5 5 Most Carried 5 | . 5 5 5 5 5 5 5 4 2 3 2 Average Carried 3 | . 3 3 4 4 5 5 3 1 1 2 1 Final Capacity 5 | 5 5 5 5 5 5 5 5 5 5 5 5 Final Carried 5 | . 5 5 5 5 5 5 5 2 2 2 1 Class Distribution -------------------- 80% | Mutant 15% | Scavenger-Sprinter 3% | Sprinter Dominant Class ---------------- Mutant | -10/Materials Mutant | -10/Mines Mutant | -10/Exiles Mutant | -9/Mines Mutant | -8/Materials Mutant | -7/Factory Scavenger-Sprinter | -7/DSF Scavenger-Sprinter | -6/Factory Mutant | -5/Factory Mutant | -5/Upper Caves Mutant | -5/Upper Caves Resources | -11 -10 -10 -10 -9 -8 -7 -7 -6 -5 -5 -5 ----------- Run | Yrd Mat Min Exi Min Mat Fac DSF Fac Fac Upp Upp Matter Collected 774 | 200 . 60 . 70 . . 109 24 19 195 97 Remotely . | . . . . . . . . . . . . Salvage Created 343 | . . . . 71 . . 122 . 21 . 129 Parts 30 | . . . . 4 . . 14 . 5 . 7 Haulers Intercepted . | . . . . . . . . . . . . Recyclers Shooed . | . . . . . . . . . . . . Parts Field Recycled . | . . . . . . . . . . . . Retrieved Matter . | . . . . . . . . . . . . Parts Self-Destructed 7 | . . . . . . . . . . . 7 Prevented . | . . . . . . . . . . . . Parts Restored . | . . . . . . . . . . . . Kills | -11 -10 -10 -10 -9 -8 -7 -7 -6 -5 -5 -5 ------- Run | Yrd Mat Min Exi Min Mat Fac DSF Fac Fac Upp Upp Combat Hostiles Destroyed 19 | . . . . 3 . . 6 . 4 . 6 Melee 1 | . . . . . . . . . . . 1 Cannons 7 | . . . . . . . 6 . . . 1 AOE 10 | . . . . 3 . . . . 4 . 3 Classes Destroyed 8 | . . . . 2 . . 3 . 2 . 1 Worker 2 | . . . . . . . . . 2 . . Tunneler 1 | . . . . 1 . . . . . . . Swarmer 9 | . . . . . . . . . 4 . 5 Cutter 4 | . . . . . . . 4 . . . . Grunt 3 | . . . . 3 . . . . . . . Duelist 1 | . . . . . . . . . . . 1 Sentry 1 | . . . . . . . 1 . . . . Heavy 1 | . . . . . . . 1 . . . . Best Kill Streak 6 | . . . . 4 . . 4 . 6 . 3 Combat Bots Only 4 | . . . . 3 . . 4 . 4 . 3 Max Kills in Single Turn 5 | . . . . 2 . . 1 . 5 . 2 Gunslinging . | . . . . . . . . . . . . Exploded 3 | . . . . 2 . . . . 3 . 2 Melee 1 | . . . . . . . . . . . 1 Uniques/NPCs Destroyed . | . . . . . . . . . . . . Combat | -11 -10 -10 -10 -9 -8 -7 -7 -6 -5 -5 -5 -------- Run | Yrd Mat Min Exi Min Mat Fac DSF Fac Fac Upp Upp Hostile Shots Fired 177 | . . . . 17 . . 36 33 14 6 71 Missed 73 | . . . . 6 . . 18 17 7 4 21 Hits 104 | . . . . 11 . . 18 16 7 2 50 Melee 3 | . . . . . . . 1 2 . . . Projectile 101 | . . . . 11 . . 17 14 7 2 50 AOE 6 | . . . . . . . 4 2 . . . Critical Strikes 5 | . . . . . . . 3 2 . . . Damage Taken 2114 | . . . . 165 . . 367 381 219 41 941 Core 1357 | . . . . 49 . . 100 202 206 . 800 Absorbed by Shields . | . . . . . . . . . . . . Core Remaining (%) 88 | 100 . . . 80 100 . 85 76 . . . Volleys Fired 25 | . . . . 5 . . 7 5 4 . 4 Largest 1 | . . . . 1 . . 1 1 1 . 1 Hottest 105 | . . . . 33 . . 43 35 43 . 105 Shots Fired 35 | . . . . 5 . . 17 5 4 . 4 Gun . | . . . . . . . . . . . . Cannon 18 | . . . . . . . 10 5 2 . 1 Launcher 17 | . . . . 5 . . 7 . 2 . 3 Special . | . . . . . . . . . . . . Kinetic 10 | . . . . . . . 10 . . . . Thermal 8 | . . . . . . . . 5 2 . 1 Explosive 17 | . . . . 5 . . 7 . 2 . 3 Electromagnetic . | . . . . . . . . . . . . Robot Hit Streak 9 | . . . . 1 . . 9 2 . . 6 Robot Miss Streak 3 | . . . . 2 . . 3 . . . . Penetration Max . | . . . . . . . . . . . . Secondary Targets . | . . . . . . . . . . . . Autonomous 10 | . . . . . . . 10 . . . . Shots Hit Robots 26 | . . . 4 1 . . 13 1 . . 7 Core Hits 30 | . . . . 7 . . 9 . 7 . 7 Critical Kills . | . . . . . . . . . . . . Critical Parts Destroyed 1 | . . . . . . . . . . . 1 Critical Strikes 3 | . . . . . . . 2 . . . 1 Blast 2 | . . . . . . . 2 . . . . Smash 1 | . . . . . . . . . . . 1 Melee Attacks 14 | . . . 4 . . . . . . . 10 Impact 10 | . . . . . . . . . . . 10 Slashing . | . . . . . . . . . . . . Piercing . | . . . . . . . . . . . . Sneak Attacks 4 | . . . 4 . . . . . . . . Combat Hostiles . | . . . . . . . . . . . . Follow-up Attacks . | . . . . . . . . . . . . Damage Inflicted 2938 | . . . . 343 . . 978 42 846 . 729 Guns . | . . . . . . . . . . . . Cannons 897 | . . . . . . . 798 33 . . 66 Explosions 1877 | . . . . 343 . . 180 . 846 . 508 Melee 155 | . . . . . . . . . . . 155 Ramming 9 | . . . . . . . . 9 . . . Kinetic 798 | . . . . . . . 798 . . . . Thermal 611 | . . . . . . . . 33 512 . 66 Explosive 1365 | . . . . 343 . . 180 . 334 . 508 Electromagnetic . | . . . . . . . . . . . . Impact 155 | . . . . . . . . . . . 155 Slashing . | . . . . . . . . . . . . Piercing . | . . . . . . . . . . . . Highest Corruption 2 | . . . . . . . 2 1 . . . Average Corruption 1 | . . . . . . . 1 1 . . . Corruption Purged . | . . . . . . . . . . . . Corruption Blocked . | . . . . . . . . . . . . Effects 1 | . . . . . . . 1 . . . . Message Errors 1 | . . . . . . . 1 . . . . Overload Shots 1 | . . . . . . . . . . . 1 Effects 1 | . . . . . . . . . . . 1 Energy Bleed 1 | . . . . . . . . . . . 1 Overflow Damage 320 | . . . . 8 . . 39 . 136 . 137 Projectiles 41 | . . . . . . . . . . . 41 Explosions 198 | . . . . 8 . . 39 . 136 . 15 Melee 81 | . . . . . . . . . . . 81 Knockbacks 1 | . . . . . . . . . . . 1 Impact 1 | . . . . . . . . . . . 1 Kinetic . | . . . . . . . . . . . . Secondary . | . . . . . . . . . . . . Self-Inflicted Damage 121 | . . . . 27 . . 5 4 52 . 33 Shots 4 | . . . . 1 . . 1 . 1 . 1 Rammed 2 | . . . . . . . . 2 . . . Targets Rammed 2 | . . . . . . . . 2 . . . Kicked . | . . . . . . . . . . . . Crushed . | . . . . . . . . . . . . Highest Temperature 24 | . . . . . . . . 10 . . 24 Average Temperature 15 | . . . . . . . . 10 . . 18 Received Heat Transfer 312 | . . . . 75 . . 18 66 9 9 135 Siege Activations . | . . . . . . . . . . . . Martial Activations . | . . . . . . . . . . . . Shielding Activations . | . . . . . . . . . . . . Robots Disrupted . | . . . . . . . . . . . . Combat Hostiles . | . . . . . . . . . . . . Robots Corrupted 1 | . . . . . . . . . . . 1 Combat Hostiles 1 | . . . . . . . . . . . 1 Parts Fried . | . . . . . . . . . . . . Impact Corruptions 2 | . . . . . . . . . . . 2 Robots Melted . | . . . . . . . . . . . . Combat Hostiles . | . . . . . . . . . . . . Parts Melted . | . . . . . . . . . . . . Heat Transferred 430 | . . . . . . . . 50 300 . 80 Parts Sabotaged . | . . . . . . . . . . . . Parts Stolen . | . . . . . . . . . . . . Parts Stripped . | . . . . . . . . . . . . Power Chain Reactions . | . . . . . . . . . . . . Alert | -11 -10 -10 -10 -9 -8 -7 -7 -6 -5 -5 -5 ------- Run | Yrd Mat Min Exi Min Mat Fac DSF Fac Fac Upp Upp Maximum Alert Level 2 | . . . . . . . 1 . 2 . . Low Security (%) 93 | 100 100 100 . 100 100 100 84 100 23 . . Level 1 3 | . . . . . . . 15 . 23 . . Level 2 3 | . . . . . . . . . 52 . . Level 3 . | . . . . . . . . . . . . Level 4 . | . . . . . . . . . . . . Level 5 . | . . . . . . . . . . . . High Security . | . . . . . . . . . . . . Max Security . | . . . . . . . . . . . . Peak Influence 426 | . 10 . . 106 29 . 205 189 426 . . Initial 107 | . . . . . 29 . . 107 92 . . Average 51 | . 1 . . 23 7 . 115 81 294 . . Influence Increases 1142 | . 10 . . 106 20 . 205 212 354 60 175 Destroy 0b10 Robot/C 380 | . . . . 60 . . 120 . 80 . 120 Destroy 0b10 Robot/NC 15 | . . . . 5 . . . . 10 . . Destroy Leader 40 | . . . . 10 . . 10 . 10 . 10 Successful Hack 22 | . 10 . . . 5 . . . 7 . . Disable Machine 180 | . . . . . . . 15 30 135 . . Destroy Structure 205 | . . . . 31 . . 60 2 112 . . Partial Spotted 15 | . . . . . 15 . . . . . . Lose Combat Pursuer 285 | . . . . . . . . 180 . 60 45 Influence Decreases 819 | . 10 . . 30 96 . . 228 137 221 97 Entered New Map 440 | . . . . . 47 . . 98 97 151 47 Time Decay 329 | . 10 . . 30 49 . . 100 40 60 40 Lost Part 50 | . . . . . . . . 30 . 10 10 Squads Dispatched 7 | . . . . . 1 . 1 3 1 . 1 Investigation 1 | . . . . . . . . 1 . . . Extermination 1 | . . . . . . . . 1 . . . Reinforcement 4 | . . . . . 1 . 1 1 1 . . Assault 1 | . . . . . . . . . . . 1 Garrison . | . . . . . . . . . . . . Intercept . | . . . . . . . . . . . . Searches Triggered . | . . . . . . . . . . . . Construction Impeded . | . . . . . . . . . . . . Haulers Reinforced . | . . . . . . . . . . . . Active Scanning Responses . | . . . . . . . . . . . . Cargo Convoy Interrupts . | . . . . . . . . . . . . Stealth | -11 -10 -10 -10 -9 -8 -7 -7 -6 -5 -5 -5 --------- Run | Yrd Mat Min Exi Min Mat Fac DSF Fac Fac Upp Upp Distress Signals 1 | . . . . . 1 . . . . . . Communications Jammed . | . . . . . . . . . . . . Distress Signals . | . . . . . . . . . . . . Times Spotted 56 | . . . . 3 3 . 7 19 5 8 11 Peak Tracking Total 12 | . . . . 3 6 . 4 12 4 8 9 Tactical Retreats 7 | . . . . . . . . 3 . 3 1 Traps | -11 -10 -10 -10 -9 -8 -7 -7 -6 -5 -5 -5 ------- Run | Yrd Mat Min Exi Min Mat Fac DSF Fac Fac Upp Upp Traps Triggered 3 | . . . . . . . 1 1 1 . . Indirectly . | . . . . . . . . . . . . Trap Hack Attempts . | . . . . . . . . . . . . Triggered . | . . . . . . . . . . . . Disarmed . | . . . . . . . . . . . . Reprogrammed . | . . . . . . . . . . . . Reused . | . . . . . . . . . . . . Traps Extracted . | . . . . . . . . . . . . Installed . | . . . . . . . . . . . . Triggered . | . . . . . . . . . . . . Machines | -11 -10 -10 -10 -9 -8 -7 -7 -6 -5 -5 -5 ---------- Run | Yrd Mat Min Exi Min Mat Fac DSF Fac Fac Upp Upp Machines Disabled 12 | . . . . . . . 1 2 9 . . Max in Single Turn 5 | . . . . . . . 1 1 5 . . Machines Repaired . | . . . . . . . . . . . . Machines Dismantled . | . . . . . . . . . . . . Machines Sabotaged . | . . . . . . . . . . . . Overloaded Fab Kills . | . . . . . . . . . . . . Hacking | -11 -10 -10 -10 -9 -8 -7 -7 -6 -5 -5 -5 --------- Run | Yrd Mat Min Exi Min Mat Fac DSF Fac Fac Upp Upp Machines Accessed 15 | . 2 . 2 . 2 3 . 5 1 . . Terminals 9 | . 1 . . . 2 2 . 3 1 . . Fabricators . | . . . . . . . . . . . . Repair Stations 1 | . . . . . . 1 . . . . . Recycling Units 3 | . 1 . . . . . . 2 . . . Scanalyzers . | . . . . . . . . . . . . Garrison Access . | . . . . . . . . . . . . Total Hacks 35 | . 7 . 2 . 8 7 . 9 2 . . Successful 12 | . 3 . 2 . 2 2 . 2 1 . . Failed 23 | . 4 . . . 6 5 . 7 1 . . Catastrophic 7 | . . . . . 2 . . 4 1 . . Database Lockouts . | . . . . . . . . . . . . Manual 18 | . 5 . 1 . 8 . . 4 . . . Terminals 25 | . 5 . . . 8 5 . 5 2 . . Fabricators . | . . . . . . . . . . . . Repair Stations 2 | . . . . . . 2 . . . . . Recycling Units 6 | . 2 . . . . . . 4 . . . Scanalyzers . | . . . . . . . . . . . . Garrison Access . | . . . . . . . . . . . . Terminal Hacks 5 | . 1 . 2 . . 1 . . 1 . . Record 1 | . . . 1 . . . . . . . . Open DSF 1 | . . . . . . 1 . . . . . Branch Access Points 1 | . . . . . . . . . 1 . . Zone Layout 1 | . 1 . . . . . . . . . . Proto ID Catalog 1 | . . . 1 . . . . . . . . Fabricator Hacks . | . . . . . . . . . . . . Repair Station Hacks 1 | . . . . . . 1 . . . . . Refit 1 | . . . . . . 1 . . . . . Recycling Unit Hacks 3 | . 1 . . . . . . 2 . . . Process 1 | . . . . . . . . 1 . . . Retrieve Matter 1 | . . . . . . . . 1 . . . Retrieve Components 1 | . 1 . . . . . . . . . . Scanalyzer . | . . . . . . . . . . . . Garrison Access Hacks . | . . . . . . . . . . . . Unauthorized Hacks 3 | . 1 . . . 2 . . . . . . Terminals 3 | . 1 . . . 2 . . . . . . Botnet 1 | . . . . . 1 . . . . . . Skim 2 | . 1 . . . 1 . . . . . . Fabricators . | . . . . . . . . . . . . Repair Stations . | . . . . . . . . . . . . Recycling Units . | . . . . . . . . . . . . Scanalyzers . | . . . . . . . . . . . . Garrison Access . | . . . . . . . . . . . . Data Cores Recovered . | . . . . . . . . . . . . Used . | . . . . . . . . . . . . Hacking Detections 10 | . 1 . . . 2 2 . 5 . . . Full Trace Events 1 | . . . . . . . . 1 . . . Feedback Events 1 | . . . . . . . . 1 . . . Corruption 1 | . . . . . . . . 1 . . . Feedback Blocked . | . . . . . . . . . . . . Robot Schematics Acquired . | . . . . . . . . . . . . Robots Built . | . . . . . . . . . . . . Authchips . | . . . . . . . . . . . . Time . | . . . . . . . . . . . . Total Robot Build Rating . | . . . . . . . . . . . . Part Schematics Acquired . | . . . . . . . . . . . . Parts Built . | . . . . . . . . . . . . Authchips . | . . . . . . . . . . . . Time . | . . . . . . . . . . . . Total Part Build Rating . | . . . . . . . . . . . . Part Studies Acquired . | . . . . . . . . . . . . Parts Repaired . | . . . . . . . . . . . . Time . | . . . . . . . . . . . . Parts Recycled . | . . . . . . . . . . . . Recycled Matter 7 | . . . . . . . . 7 . . . Retrieved Matter 7 | . . . . . . . . 7 . . . Retrieved Components 2 | . 2 . . . . . . . . . . Parts Scanalyzed . | . . . . . . . . . . . . Part Schematics Acquired . | . . . . . . . . . . . . Parts Damaged . | . . . . . . . . . . . . Bothacking | -11 -10 -10 -10 -9 -8 -7 -7 -6 -5 -5 -5 ------------ Run | Yrd Mat Min Exi Min Mat Fac DSF Fac Fac Upp Upp Used RIF Installer . | . . . . . . . . . . . . Robots Hacked 4 | . . . 4 . . . . . . . . Non-combat 3 | . . . 3 . . . . . . . . Combat 1 | . . . 1 . . . . . . . . Robot Hacks Applied 4 | . . . 4 . . . . . . . . parse_system 4 | . . . 4 . . . . . . . . Relay Couplers Released . | . . . . . . . . . . . . Fabnet Peak Effective % . | . . . . . . . . . . . . Robots Rewired . | . . . . . . . . . . . . Allies Hacked . | . . . . . . . . . . . . Hacks Repelled . | . . . . . . . . . . . . Allies | -11 -10 -10 -10 -9 -8 -7 -7 -6 -5 -5 -5 -------- Run | Yrd Mat Min Exi Min Mat Fac DSF Fac Fac Upp Upp Total Allies 1 | . . 1 . . . . . . . . . Largest Group 1 | . . 1 . . . . . . . . . Highest-Rated Group 31 | . . 31 . . . . . . . . . Highest-Rated Ally 31 | . . 31 . . . . . . . . . Total Orders . | . . . . . . . . . . . . Ally Attacks . | . . . . . . . . . . . . Total Damage . | . . . . . . . . . . . . Kills . | . . . . . . . . . . . . Allies Corrupted . | . . . . . . . . . . . . Allies Melted . | . . . . . . . . . . . . Intel | -11 -10 -10 -10 -9 -8 -7 -7 -6 -5 -5 -5 ------- Run | Yrd Mat Min Exi Min Mat Fac DSF Fac Fac Upp Upp Active Infowar (turns) 338 | . 26 166 . . . 146 . . . . . Optics 146 | . . . . . . 146 . . . . . Seismic 192 | . 26 166 . . . . . . . . . Robot Analysis Total . | . . . . . . . . . . . . Derelict Logs Recovered 4 | . . . . 2 . . . . . 2 . Drone Launches . | . . . . . . . . . . . . Drone Recoveries . | . . . . . . . . . . . . Exploration | -11 -10 -10 -10 -9 -8 -7 -7 -6 -5 -5 -5 ------------- Run | Yrd Mat Min Exi Min Mat Fac DSF Fac Fac Upp Upp Turns Passed 1625 | 17 67 174 144 229 208 151 118 216 93 127 81 Spaces Moved 2831 | 34 111 239 266 397 274 291 90 639 153 250 87 Core 2137 | 34 111 239 266 380 274 291 51 1 153 250 87 Treads . | . . . . . . . . . . . . Legs 17 | . . . . 17 . . . . . . . Wheels . | . . . . . . . . . . . . Hover . | . . . . . . . . . . . . Flight 677 | . . . . . . . 39 638 . . . Fastest Speed 23 | 50 50 50 50 50 50 50 23 26 50 50 50 Average Speed 45 | 50 50 50 50 52 50 50 41 29 50 50 51 Slowest Speed 150 | 50 50 50 50 120 50 50 150 69 150 50 150 Overloaded Moves 50 | . . . . . . . . 50 . . . Propulsion Burnouts . | . . . . . . . . . . . . Robots Hopped 10 | . . . . . . . . 10 . . . Potential Cave-ins . | . . . . . . . . . . . . Cave-ins Triggered . | . . . . . . . . . . . . Exploration Rate (%) 37 | 3 25 57 69 65 30 11 77 29 7 63 19 Regions Visited 11 Branch Regions 5 Pre-discovered Areas 1 | . . . 1 . . . . . . . . Known Exits Taken 5 | . . . . . 1 1 . 1 1 1 . Unknown Exits Taken 5 | 1 1 1 1 1 . . . . . . . Scrap Searched 6 | . . . . 2 . . . . . 3 1 Spaces Dug 7 | . . . . 5 . . . 2 . . . Terrain Destroyed 237 | . . . . 37 . . 89 2 72 . 37 Melee . | . . . . . . . . . . . . Projectile 4 | . . . . . . . 1 2 1 . . AOE 233 | . . . . 37 . . 88 . 71 . 37 Terrain Rammed . | . . . . . . . . . . . . Walls Destroyed . | . . . . . . . . . . . . Machines Disabled . | . . . . . . . . . . . . Actions | -11 -10 -10 -10 -9 -8 -7 -7 -6 -5 -5 -5 --------- Run | Yrd Mat Min Exi Min Mat Fac DSF Fac Fac Upp Upp Total 3124 | 33 122 294 276 411 344 294 169 655 165 251 110 Wait 147 | . . 47 . 5 69 . 21 . 3 . 2 Move 2802 | 33 110 238 265 396 273 290 89 620 152 249 87 Hop 9 | . . . . . . . . 9 . . . Pick Up 22 | . 7 2 2 1 . . 4 4 . 1 1 Fast Attach 9 | . 1 . . . 1 3 4 . . . . Attach 35 | . 2 3 1 2 . . 9 10 3 1 4 Detach 25 | . 1 2 . 1 . . 13 3 3 . 2 Swap 1 | . . . . . . . 1 . . . . Drop 19 | . 1 2 4 1 1 1 6 3 . . . Fire 25 | . . . . 5 . . 7 5 4 . 4 Melee 14 | . . . 4 . . . . . . . 10 Ram 1 | . . . . . . . . 1 . . . Kick . | . . . . . . . . . . . . Crush . | . . . . . . . . . . . . Escape Stasis 15 | . . . . . . . 15 . . . . Rewire . | . . . . . . . . . . . . Trap . | . . . . . . . . . . . . Miscellaneous . | . . . . . . . . . . . . Route ------- -11/Scrapyard -10/Materials -10/Mines (discovered 2 exits: [*Mat] / *Exi) -10/Exiles -9/Mines -8/Materials (discovered 2 exits: *Fac x2) -7/Factory -7/DSF -6/Factory (discovered 2 exits: *Fac / *Ext) -5/Factory (discovered 2 exits: *Upp x2) -5/Upper Caves -5/Upper Caves History --------- Turn | Location | Event 6 | -11/Scrapyard | Discovered new exit (range 15) 18 | -11/Scrapyard | Entered Materials 68 | -10/Materials | Discovered new exit (range 12) 85 | -10/Materials | Released all parts (2) 85 | -10/Materials | Entered Mines 137 | -10/Mines | Discovered new exit (range 15) 146 | -10/Mines | A weapon hastily lodged in a ceiling crevice suddenly fell to the ground 233 | -10/Mines | Received a Mining Laser from a helpful Derelict 251 | -10/Mines | Deemed a non-threat by the Exiles lab entrance 251 | -10/Mines | Discovered new exit (range 5) 259 | -10/Mines | Entered Exiles 271 | -10/Exiles | Met 8R-AWN 283 | -10/Exiles | Met EX-HEX 303 | -10/Exiles | Met EX-DEC 311 | -10/Exiles | Build established: Mutant 319 | -10/Exiles | Learned location of Zion (-6) 328 | -10/Exiles | Met EX-BIN 337 | -10/Exiles | Aligned with FarCom system 337 | -10/Exiles | Given EX-Vault access code 349 | -10/Exiles | Opened EX-Vault 354 | -10/Exiles | Found AWS/Autocannon 367 | -10/Exiles | Warned to stay clear of 0b10 Research branches 398 | -10/Exiles | Discovered new exit (range 12) 403 | -10/Exiles | Left Exiles lab with AWS/Autocannon 403 | -10/Exiles | Entered Mines 442 | -9/Mines | Learned Materials emergency access door positions 609 | -9/Mines | Learned 4 Materials zone layouts 611 | -9/Mines | Discovered new exit (range 5) 632 | -9/Mines | Entered Materials 632 | -8/Materials | Evolved 4 slots: Propulsion x2, Utility x1, Weapon x1 633 | -8/Materials | Identified exit to Factory 840 | -8/Materials | Entered Factory 840 | -7/Factory | Evolved 2 slots: Propulsion x1, Utility x1 991 | -7/Factory | Identified exit to DSF 991 | -7/Factory | Released all parts (6) 991 | -7/Factory | Entered DSF 1006 | -7/DSF | Additional patrols routed to DSF 1080 | -7/DSF | Discovered new exit (range 15) 1109 | -7/DSF | Entered Factory 1109 | -6/Factory | Evolved 2 slots: Power x1, Propulsion x1 1284 | -6/Factory | Discovered new exit (range 6) 1285 | -6/Factory | Identified exit to Extension 1315 | -6/Factory | Discovered new exit (range 15) 1322 | -6/Factory | Identified exit to Factory 1325 | -6/Factory | Entered another Factory area 1325 | -5/Factory | Evolved 2 slots: Propulsion x1, Utility x1 1348 | -5/Factory | Lost 3 parts (1p2n) 1376 | -5/Factory | Identified exit to Upper Caves 1418 | -5/Factory | Entered Upper Caves 1471 | -5/Upper Caves | Encountered a Warlord checkpoint 1519 | -5/Upper Caves | Identified exit to Upper Caves 1538 | -5/Upper Caves | Learned Factory terminal intel 1539 | -5/Upper Caves | Attracted the attention of an 0b10 outpost 1545 | -5/Upper Caves | Entered another Upper Caves area 1550 | -5/Upper Caves | Attracted the attention of an 0b10 outpost 1579 | -5/Upper Caves | Core integrity fell below 50% 1612 | -5/Upper Caves | Core integrity fell below 20% 1626 | -5/Upper Caves | Destroyed by S-27 Virus with Autogun Last Messages --------------- 01594_ 3X-UET(r) collects Med. Battery. 01602_ Overload: Energy bleed (-23). 01602_ Destroyed VTOL Module. 01602_ S-27 Virus destroyed. 01608_ Autogun fries itself beyond repair. 01610_ VTOL Module fries itself beyond repair. 01611_ Acquired 52 matter. 01614_ Lgt. Nuclear Core fries itself beyond repair. 01618_ S-27 Virus suffers critical hit (Smash). 01618_ Destroyed VTOL Module. 01618_ S-27 Virus system corrupted by crushing effect. 01618_ S-27 Virus knocked back. 01619_ S-27 Virus IFF system glitched. 01620_ Autogun fries itself beyond repair. 01622_ Destroyed VTOL Module. 01622_ S-27 Virus system corrupted by crushing effect. 01623_ S-27 Virus system terminally corrupted. Map ----- +----------------------------------------------------+ | ?????????????????????????????????????????????????? | | ?????????????????????????????????????????????????? | | ?????????????????????????????????????????????????? | | ?????????????????????????????????????????????????? | | ?????????????????????????????????????????????????? | | ?????????????????????????????????????????????????? | | ?????????????????????????????????????????????????? | | ?????????????????????????????????????????????????? | | ?????????????????????????????????????????????????? | | ?????????????????????????????????????????????????? | | ?????????????????????????????????????????????????? | | ?????????????????????????????????????????????????? | | ?????????????????? ?????????????????????#???????? | | ???????????????? ??????????????????? ???????? | | ????????????????? ??????????????????? #??????? | | ?????????????????# #?????????????????? ??????? | | ?????????????????# #????????????????? ##????? | | ????????????????## ????????????????? ##???? | | ????????????????# ????????????????? #??## | | ?????????????????# ???##???????????? #?## | | ??????????????????# ##? ##????????????# ### | | ???????????????????# ## ????????????## | | ???????????????????# ######??????## | | ????????????????????# s #??????# | | ?????????????????????# ?? #????????# | | ??????????????????????# @##??# #????##### | | ?????????????????????## %#??# #????# | | ??????????????????#### #??# #????# | | ?????????????????## s #??# #????# ## | | ???????????????### #??# ###?## ## | | ????????????# #### ### ## ## | | ????????????# # ## #####" | | ??????????????## ## #?## #???## | | ???????????????###?##???# ### ####### | | ????????????????????????# #?# ### | | ???????????????????????# #?# #### | | ??????????????????????# #?# ###### # | | ??????????????????????# ?## #???# | | ??????????????????????# #?#####??## | | ??????????????????????##### ???????## % | | ??????????????????????????? ???????# ## | | ??????????????????????????? #?????## # # | | ??????????????????????????? #???### "# #### | | ??????????????????????????? #????# ###??? | | ???????????????????????????###????# #????? | | ??????????????????????????????????## ##????? | | ???????????????????????????????????#########?????? | | ?????????????????????????????????????????????????? | | ?????????????????????????????????????????????????? | | ?????????????????????????????????????????????????? | +----------------------------------------------------+ Best States ------------- Heat Dissipation 40 Energy Generation 10 Energy Capacity 125 Matter Stores 300 Matter Capacity 300 Sight Range 18 Terrain Scan Density 10 Armor Coverage 80 Evasion (%) 65 Item Schematics ----------------- None Robot Schematics ------------------ None Fabricated ------------ Nothing Repaired ---------- Nothing Studied --------- None Alien Tech Used ----------------- None Achievements -------------- None Challenges ------------ None Game ------ Seed ActuatorCoolingSpecial Manual? 0 Play Time 00:30:40 Cumulative 542.1 hours Start 2025.11.22 @ 13:53:04 End 2025.11.22 @ 14:28:46 Sessions 2 Manual Loads 0 Difficulty Rogue Special Mode None Game No. 712 Rogue 712 Adventurer 0 Explorer 0 Win Type - Total 19 Types 8/1/2/2/2/0/2/2/0/0 Lore% 92 Gallery% 86 Achievement% 70 Wizard Run 0 Options --------- Layout 2 ASCII 0 Keyboard 0 Movement Mouse Keybinds 0 Fullscreen 2 Font 24/Tamsyn Map View 50x49 Zoom Use 0% Tactical HUD 1 Map Filters NONE Filters NONE Steam 1 RUN: 6ce8c1cd-deba-4eca-8910-ef8c9a84b020